{"text_format":"1","workbook":"xlsx","n_sheets":2,"sheets":["熟字訓 読み方","熟字訓 読めるかな"],"not_rendered":{"charts":0,"images":0,"macros":1,"external_links":0,"defined_names":0,"comments":0,"pivot_tables":0},"unopened":[],"bounds":{"document_bytes":16777216,"sheet_cells":100000,"rows_first":2000,"rows_last":500,"rows_between":2000,"halvings":0,"cell_chars":16384,"cell_head_chars":4096},"cells_cut":0,"cells_raw":0,"read":"whole","date_system":"1900"}

{"sheet":"熟字訓 読み方","index":0,"n_rows":325,"n_cols":7,"rows_kept":325,"cut":false,"hidden":false,"merged":[]}
[]
[1,"熟字訓　読めるかな"]
[2,"意気地",null,null,null,null,{"$f":"COUNTIF($B$3:$B$325,B3)","v":2}]
[3,"意気地","いくじ",null,null,null,{"$f":"COUNTIF($B$3:$B$325,B4)","v":2}]
[4,"為替",null,null,null,null,2]
[5,"為替","かわせ",null,null,null,2]
[6,"乙女",null,null,null,null,2]
[7,"乙女","おとめ",null,null,null,2]
[8,"仮名",null,null,null,null,2]
[9,"仮名","かな",null,null,null,2]
[10,"海原",null,null,null,null,2]
[11,"海原","うなばら",null,null,null,2]
[12,"灰汁",null,null,null,null,3]
[13,"灰汁","あく",null,null,null,3]
[14,"灰汁","あく","食品に含まれる不快な成分。",null,null,3]
[15,"寄席",null,null,null,null,2]
[16,"寄席","よせ",null,null,null,2]
[17,"景色",null,null,null,null,2]
[18,"景色","けしき",null,null,null,2]
[19,"玄人",null,null,null,null,2]
[20,"玄人","くろうと",null,null,null,2]
[21,"五月晴れ",null,null,null,null,2]
[22,"五月晴れ","さつきばれ",null,null,null,2]
[23,"行方",null,null,null,null,2]
[24,"行方","ゆくえ",null,null,null,2]
[25,"差し支える",null,null,null,null,2]
[26,"差し支える","さしつかえる",null,null,null,2]
[27,"砂利",null,null,null,null,2]
[28,"砂利","じゃり",null,null,null,2]
[29,"最寄り",null,null,null,null,2]
[30,"最寄り","もより",null,null,null,2]
[31,"雑魚",null,null,null,null,2]
[32,"雑魚","ざこ",null,null,null,2]
[33,"三味線",null,null,null,null,2]
[34,"三味線","しゃみせん",null,null,null,2]
[35,"桟敷",null,null,null,null,2]
[36,"桟敷","さじき",null,null,null,2]
[37,"芝生",null,null,null,null,2]
[38,"芝生","しばふ",null,null,null,2]
[39,"若人",null,null,null,null,2]
[40,"若人","わこうど",null,null,null,2]
[41,"十重二十重",null,null,null,null,2]
[42,"十重二十重","とえはたえ",null,null,null,2]
[43,"笑顔",null,null,null,null,2]
[44,"笑顔","えがお",null,null,null,2]
[45,"心地",null,null,null,null,2]
[46,"心地","ここち",null,null,null,2]
[47,"数寄屋",null,null,null,null,2]
[48,"数寄屋","すきや",null,null,null,2]
[49,"数珠",null,null,null,null,2]
[50,"数珠","じゅず",null,null,null,2]
[51,"素人",null,null,null,null,2]
[52,"素人","しろうと",null,null,null,2]
[53,"早苗",null,null,null,null,2]
[54,"早苗","さなえ",null,null,null,2]
[55,"草履",null,null,null,null,2]
[56,"草履","ぞうり",null,null,null,2]
[57,"息子",null,null,null,null,2]
[58,"息子","むすこ",null,null,null,2]
[59,"息吹",null,null,null,null,2]
[60,"息吹","いぶき",null,null,null,2]
[61,"稚児",null,null,null,null,2]
[62,"稚児","ちご",null,null,null,2]
[63,"築山",null,null,null,null,2]
[64,"築山","つきやま",null,null,null,2]
[65,"仲人",null,null,null,null,2]
[66,"仲人","なこうど",null,null,null,2]
[67,"伝馬船",null,null,null,null,{"$f":"COUNTIF($B$3:$B$325,B68)","v":2}]
[68,"伝馬船","てんません",null,null,null,2]
[69,"投網",null,null,null,null,2]
[70,"投網","とあみ",null,null,null,2]
[71,"読経",null,null,null,null,2]
[72,"読経","どきょう",null,null,null,2]
[73,"凸凹",null,null,null,null,2]
[74,"凸凹","でこぼこ",null,null,null,2]
[75,"日和",null,null,null,null,2]
[76,"日和","ひより",null,null,null,2]
[77,"波止場",null,null,null,null,2]
[78,"波止場","はとば",null,null,null,2]
[79,"白髪",null,null,null,null,2]
[80,"白髪","しらが",null,null,null,2]
[81,"八百長",null,null,null,null,2]
[82,"八百長","やおちょう",null,null,null,2]
[83,"浮気",null,null,null,null,2]
[84,"浮気","うわき",null,null,null,2]
[85,"部屋",null,null,null,null,2]
[86,"部屋","へや",null,null,null,2]
[87,"風邪",null,null,null,null,2]
[88,"風邪","かぜ",null,null,null,2]
[89,"名残",null,null,null,null,2]
[90,"名残","なごり",null,null,null,2]
[91,"迷子",null,null,null,null,2]
[92,"迷子","まいご",null,null,null,2]
[93,"猛者",null,null,null,null,2]
[94,"猛者","もさ",null,null,null,2]
[95,"木綿",null,null,null,null,2]
[96,"木綿","もめん",null,null,null,2]
[97,"野良",null,null,null,null,2]
[98,"野良","のら",null,null,null,2]
[99,"立ち退く",null,null,null,null,2]
[100,"立ち退く","たちのく",null,null,null,2]
[101,"硫黄",null,null,null,null,2]
[102,"硫黄","いおう",null,null,null,2]
[103,"御神酒",null,null,null,null,3]
[104,"御神酒","おみき",null,null,null,3]
[105,"御神酒","おみき","神に供える酒。",null,null,3]
[106,"一昨昨日",null,null,null,null,3]
[107,"一昨昨日","さきおととい",null,null,null,3]
[108,"一昨昨日","さきおととい","本日の３日前の日。",null,null,3]
[109,"一昨日",null,null,null,null,3]
[110,"一昨日","おととい",null,null,null,3]
[111,"一昨日","おととい (いっさくじつ)","本日の２日前の日（前前日）。",null,null,3]
[112,"一寸",null,null,null,null,3]
[113,"一寸","ちょっと",null,null,null,3]
[114,"一寸","ちょっと","「ちょっと」は短い時間、「いっすん」は長さの単位で約３．０３ｃｍ。",null,null,3]
[115,"一日",null,null,null,null,3]
[116,"一日","ついたち",null,null,null,3]
[117,"一日","ついたち","１日。",null,null,3]
[118,"烏賊",null,null,null,null,3]
[119,"烏賊","いか",null,null,null,3]
[120,"烏賊","いか","十本の腕の頭足類。",null,null,3]
[121,"黄葉",null,null,null,null,3]
[122,"黄葉","もみじ",null,null,null,3]
[123,"黄葉","もみじ","秋に起こる落葉樹の葉の色が変わる現象。",null,null,3]
[124,"下手",null,null,null,null,3]
[125,"下手","へた(したて、しもて:ともに訓）",null,null,null,3]
[126,"下手","へた(したて、しもて:ともに訓）","「へた」はうまくないこと、「したて」は遜ること、「しもて」は舞台のむかって左側のこと。",null,null,3]
[127,"果物",null,null,null,null,3]
[128,"果物","くだもの",null,null,null,3]
[129,"果物","くだもの","甘味や酸味の強い果実、特に樹木になるもの。",null,null,3]
[130,"河岸",null,null,null,null,3]
[131,"河岸","かし",null,null,null,{"$f":"COUNTIF($B$3:$B$325,B132)","v":3}]
[132,"河岸","かし","「かし」は魚卸売市場、「かわぎし」は川の岸。",null,null,3]
[133,"蚊帳",null,null,null,null,3]
[134,"蚊帳","かや",null,null,null,3]
[135,"蚊帳","かや","蚊から人を守るための箱状の網。",null,null,3]
[136,"晦日",null,null,null,null,3]
[137,"晦日","つごもり、みそか",null,null,null,3]
[138,"晦日","つごもり、みそか","３０日または月末、大晦日は１２月３１日。",null,null,3]
[139,"海月",null,null,null,null,3]
[140,"海月","くらげ",null,null,null,3]
[141,"海月","くらげ","浮遊生活を送る刺胞動物。",null,null,3]
[142,"海女",null,null,null,null,3]
[143,"海女","あま",null,null,null,3]
[144,"海女","あま","海に潜り海産物を取る女性。",null,null,3]
[145,"海老",null,null,null,null,3]
[146,"海老","えび",null,null,null,3]
[147,"海老","えび","甲殻類の動物。",null,null,3]
[148,"角力",null,null,null,null,3]
[149,"角力","すもう",null,null,null,3]
[150,"角力","すもう","日本の伝統的な格闘技。",null,null,3]
[151,"眼鏡",null,null,null,null,3]
[152,"眼鏡","めがね",null,null,null,3]
[153,"眼鏡","めがね","視力を矯正する道具。",null,null,3]
[154,"玄孫",null,null,null,null,3]
[155,"玄孫","やしゃご",null,null,null,3]
[156,"玄孫","やしゃご","孫の孫。",null,null,3]
[157,"五月",null,null,null,null,3]
[158,"五月","さつき",null,null,null,3]
[159,"五月","さつき　(ごがつ)","五月",null,null,3]
[160,"五月雨",null,null,null,null,3]
[161,"五月雨","さみだれ",null,null,null,3]
[162,"五月雨","さみだれ","梅雨と同じ意味。",null,null,3]
[163,"紅葉",null,null,null,null,3]
[164,"紅葉","もみじ",null,null,null,3]
[165,"紅葉","もみじ (こうよう)","秋に起こる落葉樹の葉の色が変わる現象。",null,null,3]
[166,"今朝",null,null,null,null,3]
[167,"今朝","けさ",null,null,null,3]
[168,"今朝","けさ","今日の朝。",null,null,3]
[169,"今日",null,null,null,null,3]
[170,"今日","きょう",null,null,null,3]
[171,"今日","きょう","「きょう」は本日（ｔｈｉｓ　ｄａｙ）、「こんにち」は最近",null,null,3]
[172,"今年",null,null,null,null,3]
[173,"今年","ことし",null,null,null,3]
[174,"今年","ことし","本年。",null,null,3]
[175,"昨日",null,null,null,null,3]
[176,"昨日","きのう",null,null,null,3]
[177,"昨日","きのう　(さくじつ)","本日の１日前の日（前日）。",null,null,3]
[178,"皐月",null,null,null,null,3]
[179,"皐月","さつき",null,null,null,3]
[180,"皐月","さつき","五月",null,null,3]
[181,"山葵",null,null,null,null,3]
[182,"山葵","わさび",null,null,null,3]
[183,"山葵","わさび","アブラナ科の植物。",null,null,3]
[184,"山車",null,null,null,null,3]
[185,"山車","だし",null,null,null,3]
[186,"山車","だし","祭に使われる車輪を持った出し物。大勢で引く。",null,null,3]
[187,"師走",null,null,null,null,3]
[188,"師走","しわす、しはす",null,null,null,3]
[189,"師走","しわす、しはす","１２月。",null,null,3]
[190,"時雨",null,null,null,null,3]
[191,"時雨","しぐれ",null,null,null,3]
[192,"時雨","しぐれ","少しの間降る雨。",null,null,3]
[193,"七夕",null,null,null,null,3]
[194,"七夕","たなばた",null,null,null,3]
[195,"七夕","たなばた　(しちせき)","７月７日またはその日に行われる祭り。",null,null,{"$f":"COUNTIF($B$3:$B$325,B196)","v":3}]
[196,"十六夜",null,null,null,null,3]
[197,"十六夜","いざよい",null,null,null,3]
[198,"十六夜","いざよい","満月の次の日の夜、そのとき出る月を指すことも。",null,null,3]
[199,"従兄弟",null,null,null,null,3]
[200,"従兄弟","いとこ",null,null,null,3]
[201,"従兄弟","いとこ","父母の兄弟姉妹の子。",null,null,3]
[202,"叔父",null,null,null,null,3]
[203,"叔父","おじ",null,null,null,3]
[204,"叔父","おじ　(しゅくふ)","父母の弟。",null,null,3]
[205,"叔母",null,null,null,null,3]
[206,"叔母","おば",null,null,null,3]
[207,"叔母","おば　(しゅくぼ)","父母の妹。",null,null,3]
[208,"祝詞",null,null,null,null,3]
[209,"祝詞","のりと",null,null,null,3]
[210,"祝詞","のりと","神に奉納するための言葉。",null,null,3]
[211,"女形",null,null,null,null,3]
[212,"女形","おやま",null,null,null,3]
[213,"女形","おやま","女性を演じる男性の役者（歌舞伎・能など）。",null,null,3]
[214,"女将",null,null,null,null,3]
[215,"女将","おかみ",null,null,null,3]
[216,"女将","おかみ","旅館や料理屋等の女主人。",null,null,3]
[217,"女郎花",null,null,null,null,3]
[218,"女郎花","おみなえし",null,null,null,3]
[219,"女郎花","おみなえし","オミナエシ科の多年草",null,null,3]
[220,"小豆",null,null,null,null,3]
[221,"小豆","あずき",null,null,null,3]
[222,"小豆","あずき","餡子の原料の豆。",null,null,3]
[223,"松明",null,null,null,null,3]
[224,"松明","たいまつ",null,null,null,3]
[225,"松明","たいまつ","手で持てるようにした火のついた木切れ。",null,null,3]
[226,"心太",null,null,null,null,3]
[227,"心太","ところてん",null,null,null,3]
[228,"心太","ところてん","海藻類を煮溶かし寒天質を冷まして固めた食品。",null,null,3]
[229,"心天",null,null,null,null,3]
[230,"心天","ところてん",null,null,null,3]
[231,"心天","ところてん","海藻類を煮溶かし寒天質を冷まして固めた食品。",null,null,3]
[232,"神楽",null,null,null,null,3]
[233,"神楽","かぐら",null,null,null,3]
[234,"神楽","かぐら","神に奉納するための歌と舞。",null,null,3]
[235,"吹雪",null,null,null,null,3]
[236,"吹雪","ふぶき",null,null,null,3]
[237,"吹雪","ふぶき","風と雪が強いこと。",null,null,3]
[238,"水母",null,null,null,null,3]
[239,"水母","くらげ",null,null,null,3]
[240,"水母","くらげ","浮遊生活を送る刺胞動物。",null,null,3]
[241,"雪崩",null,null,null,null,3]
[242,"雪崩","なだれ",null,null,null,3]
[243,"雪崩","なだれ","雪が崩れること。",null,null,3]
[244,"相撲",null,null,null,null,3]
[245,"相撲","すもう",null,null,null,3]
[246,"相撲","すもう","日本の伝統的な格闘技。",null,null,3]
[247,"足袋",null,null,null,null,3]
[248,"足袋","たび",null,null,null,3]
[249,"足袋","たび","日本固有の伝統的な衣類で足に履く一種の下着。",null,null,3]
[250,"太刀",null,null,null,null,3]
[251,"太刀","たち",null,null,null,3]
[252,"太刀","たち","刀。大きな刀、または、直刀でない刀。",null,null,3]
[253,"大人",null,null,null,null,3]
[254,"大人","おとな",null,null,null,3]
[255,"大人","おとな","成人。",null,null,3]
[256,"大和",null,null,null,null,3]
[257,"大和","やまと",null,null,null,3]
[258,"大和","やまと","奈良県天理市付近の地域名、奈良県や日本全体を指すこともある。神奈川県に大和市（やまとし）がある。企業名では両方の読みがある。",null,null,3]
[259,"鍛冶",null,null,null,null,{"$f":"COUNTIF($B$3:$B$325,B260)","v":3}]
[260,"鍛冶","かじ",null,null,null,3]
[261,"鍛冶","かじ","鍛造による金属製品の製作。鍛冶屋。",null,null,3]
[262,"団扇",null,null,null,null,3]
[263,"団扇","うちわ",null,null,null,3]
[264,"団扇","うちわ","扇ぐことで風を起こせるようにした日本の伝統的な冷房器具。",null,null,3]
[265,"竹刀",null,null,null,null,3]
[266,"竹刀","しない",null,null,null,3]
[267,"竹刀","しない","竹でできた刀。",null,null,3]
[268,"田舎",null,null,null,null,3]
[269,"田舎","いなか",null,null,null,3]
[270,"田舎","いなか","人口が疎で辺鄙な地域（いわゆる地方）。生まれ故郷。",null,null,3]
[271,"土産",null,null,null,null,3]
[272,"土産","みやげ",null,null,null,3]
[273,"土産","みやげ","その土地の特産品、旅先で仕入れた品物、記念品。",null,null,3]
[274,"土筆",null,null,null,null,3]
[275,"土筆","つくし",null,null,null,3]
[276,"土筆","つくし","スギナの胞子茎。",null,null,3]
[277,"二十歳",null,null,null,null,3]
[278,"二十歳","はたち",null,null,null,3]
[279,"二十歳","はたち","２０才。",null,null,3]
[280,"乳母",null,null,null,null,3]
[281,"乳母","うば",null,null,null,3]
[282,"乳母","うば","子供を育てるための人。",null,null,3]
[283,"如月",null,null,null,null,3]
[284,"如月","きさらぎ",null,null,null,3]
[285,"如月","きさらぎ","２月。",null,null,3]
[286,"梅雨",null,null,null,null,3]
[287,"梅雨","つゆ",null,null,null,3]
[288,"梅雨","つゆ","春と夏の間に多く雨が降る期間とその雨。",null,null,3]
[289,"伯父",null,null,null,null,3]
[290,"伯父","おじ",null,null,null,3]
[291,"伯父","おじ","父母の兄。",null,null,3]
[292,"伯母",null,null,null,null,3]
[293,"伯母","おば",null,null,null,3]
[294,"伯母","おば","父母の姉。",null,null,3]
[295,"百合",null,null,null,null,3]
[296,"百合","ゆり",null,null,null,3]
[297,"百合","ゆり","ユリ科の多年草。",null,null,3]
[298,"母家",null,null,null,null,3]
[299,"母家","おもや",null,null,null,3]
[300,"母家","おもや","家の主となる建物。",null,null,3]
[301,"母屋",null,null,null,null,3]
[302,"母屋","おもや",null,null,null,3]
[303,"母屋","おもや","家の主となる建物。",null,null,3]
[304,"明後日",null,null,null,null,3]
[305,"明後日","あさって",null,null,null,3]
[306,"明後日","あさって　(みょうごにち)","本日の２日後の日（翌翌日）。",null,null,3]
[307,"明日",null,null,null,null,3]
[308,"明日","あす、あした",null,null,null,3]
[309,"明日","あす、あした　(みょうにち)","本日の１日後の日（翌日）",null,null,3]
[310,"明明後日",null,null,null,null,3]
[311,"明明後日","しあさって",null,null,null,3]
[312,"明明後日","しあさって","本日の３日後の日。",null,null,3]
[313,"弥生",null,null,null,null,3]
[314,"弥生","やよい　　　",null,null,null,3]
[315,"弥生","やよい　　　","３月。",null,null,3]
[316,"陽炎",null,null,null,null,3]
[317,"陽炎","かげろう",null,null,null,3]
[318,"陽炎","かげろう","春及び夏に起こる気象現象。",null,null,3]
[319,"浴衣",null,null,null,null,3]
[320,"浴衣","ゆかた",null,null,null,3]
[321,"浴衣","ゆかた","単純な構造の和服。",null,null,3]
[322,"流鏑馬",null,null,null,null,3]
[323,"流鏑馬","やぶさめ",null,null,null,{"$f":"COUNTIF($B$3:$B$325,B324)","v":3}]
[324,"流鏑馬","やぶさめ","疾走する馬上から的に矢を射る弓術の稽古・儀式。",null,null,3]

{"sheet":"熟字訓 読めるかな","index":1,"n_rows":5,"n_cols":3,"rows_kept":5,"cut":false,"hidden":false,"merged":[]}
[{"$f":"LEN(C2)","v":9},{"$f":"A2","v":1}]
[1,null,{"$f":"IF(VLOOKUP($B$1,'熟字訓 読み方'!$A$2:$H$1000000,2)=\"\",\"\",VLOOKUP($B$1,'熟字訓 読み方'!$A$2:$H$1000000,2))","v":"熟字訓　読めるかな"}]
[{"$f":"MAX('熟字訓 読み方'!$A$2:$A$1048576)","v":324},null,{"$f":"\"  \"&IF(VLOOKUP($B$1,'熟字訓 読み方'!$A$2:$H$1000000,3)=\"\",\"\",VLOOKUP($B$1,'熟字訓 読み方'!$A$2:$H$1000000,3))","v":"  "}]
[{"$f":"LEN(C4)","v":2},null,{"$f":"\"  \"&IF(VLOOKUP($B$1,'熟字訓 読み方'!$A$2:$H$1000000,4)=\"\",\"\",VLOOKUP($B$1,'熟字訓 読み方'!$A$2:$H$1000000,4))","v":"  "}]
[{"$f":"LEN(C3)","v":2}]